bitfinex/quotes_BTCUSD_20250331
["timestamp","ask_amount","ask_price","bid_price","bid_amount"]
[1743421560256,0.55653,82182.0,82181.0,0.64423022]
[1743421560609,0.57558505,82182.0,82181.0,0.64423022]
[1743421561794,0.32005505,82182.0,82181.0,0.64423022]
[1743421562001,0.33222305,82182.0,82181.0,0.72363022]
[1743421562197,0.57558505,82182.0,82181.0,0.72363022]
[1743421562974,0.544362,82182.0,82181.0,0.72363022]
[1743421563098,0.55553,82182.0,82181.0,0.72363022]
[1743421564344,0.543362,82182.0,82181.0,0.72363022]
[1743421565629,0.55553,82182.0,82181.0,0.72363022]
[1743421566686,0.3,82182.0,82181.0,0.72363022]
[1743421567300,0.543362,82182.0,82181.0,0.72363022]
[1743421567445,0.55553,82182.0,82181.0,0.86439022]
[1743421569096,0.55553,82182.0,82181.0,0.98699408]
[1743421570174,0.3,82182.0,82181.0,0.98699408]
[1743421570628,0.543362,82182.0,82181.0,0.98699408]
[1743421575365,0.55553,82182.0,82181.0,0.98699408]
[1743421576717,0.3,82182.0,82181.0,0.98699408]
[1743421577994,0.3,82182.0,82181.0,0.98799408]
[1743421578609,0.00014062,82187.0,82182.0,0.0818]
[1743421578814,0.00014062,82187.0,82184.0,0.0751]
[1743421579085,0.00014062,82187.0,82186.0,0.0751]
[1743421579234,0.00014062,82187.0,82186.0,0.19770386]
[1743421579473,0.00014062,82187.0,82186.0,0.20992822]
[1743421580566,0.00014062,82187.0,82186.0,0.25722822]
[1743421581438,0.00181816,82194.0,82186.0,0.18212822]
[1743421581734,0.00181816,82194.0,82188.0,0.0792]
[1743421581955,0.00181816,82194.0,82190.0,0.0751]
[1743421582139,0.00181816,82194.0,82192.0,0.0751]
[1743421582387,0.00181816,82194.0,82193.0,0.12260386]
[1743421582554,0.00181816,82194.0,82193.0,0.13475577]
[1743421583049,0.00181816,82194.0,82193.0,1.48313204]
[1743421583702,0.00181816,82194.0,82193.0,1.48413204]
[1743421584109,0.00181816,82194.0,82193.0,1.48313204]
[1743421584484,0.00181816,82194.0,82193.0,1.48413204]
[1743421585054,0.00181816,82194.0,82193.0,1.48713204]
[1743421585555,0.00181816,82194.0,82193.0,1.48913204]
[1743421585982,0.00181816,82194.0,82193.0,1.48713204]
[1743421586323,0.00181816,82194.0,82193.0,1.49113204]
[1743421586624,0.00181816,82194.0,82193.0,1.5156322]
[1743421588741,0.00181816,82194.0,82193.0,1.5116322]
[1743421589109,0.00181816,82194.0,82193.0,1.5176322]
[1743421589511,0.00181816,82194.0,82193.0,1.5136322]
[1743421589721,0.00181816,82194.0,82193.0,1.5196322]
[1743421592541,0.00181816,82194.0,82193.0,1.6602722]
[1743421595464,0.00181816,82194.0,82193.0,2.2918722]
[1743421596690,0.00181816,82194.0,82193.0,2.71501305]
[1743421598146,0.00181816,82194.0,82193.0,3.01501305]
[1743421598387,0.00181816,82194.0,82193.0,3.70901305]
[1743421598587,0.00181816,82194.0,82193.0,3.71401305]
[1743421598723,0.00181816,82194.0,82193.0,3.72001305]
[1743421599124,0.00181816,82194.0,82193.0,3.71401305]
[1743421599546,0.00181816,82194.0,82193.0,3.86501305]
[1743421599769,0.00181816,82194.0,82193.0,3.56837305]
[1743421599980,0.00181816,82194.0,82193.0,3.85897305]
[1743421600319,0.00181816,82194.0,82193.0,3.71497305]
[1743421600519,0.00181816,82194.0,82193.0,3.70897305]
[1743421600879,0.00181816,82194.0,82193.0,3.71497305]
[1743421601078,0.00181816,82194.0,82193.0,3.57437305]
[1743421601278,0.00181816,82194.0,82193.0,3.71497305]
[1743421602628,0.00181816,82194.0,82193.0,3.57437305]
[1743421602829,0.00181816,82194.0,82193.0,3.2598322]
[1743421603252,0.00181816,82194.0,82193.0,2.7004322]
[1743421603990,0.00181816,82194.0,82193.0,2.5125322]
[1743421604107,0.00181816,82194.0,82193.0,2.0979322]
[1743421604311,0.00181816,82194.0,82193.0,2.2385322]
[1743421604532,0.00181816,82194.0,82193.0,2.2445322]
[1743421604746,0.00181816,82194.0,82193.0,2.1039322]
[1743421604948,0.00181816,82194.0,82193.0,2.2445322]
[1743421605325,0.00181816,82194.0,82193.0,2.2385322]
[1743421605724,0.00181816,82194.0,82193.0,2.2445322]
[1743421612628,0.00181816,82194.0,82193.0,1.02115593]
[1743421614316,0.00181816,82194.0,82193.0,1.42975593]
[1743421616131,0.00181816,82194.0,82193.0,1.47645593]
[1743421616346,0.00181816,82194.0,82193.0,1.49099678]
[1743421617024,0.00181816,82194.0,82193.0,1.48499678]
[1743421617629,0.00181816,82194.0,82193.0,1.49099678]
[1743421618240,0.00181816,82194.0,82193.0,1.47641593]
[1743421618648,0.00181816,82194.0,82193.0,1.47041593]
[1743421618985,0.00181816,82194.0,82193.0,1.47641593]
[1743421620181,0.00181816,82194.0,82193.0,1.33585593]
[1743421620520,0.00181816,82194.0,82193.0,1.42971593]
[1743421622463,0.00181816,82194.0,82193.0,1.21145593]
[1743421622668,0.00181816,82194.0,82193.0,1.35201593]
[1743421623542,0.00181816,82194.0,82193.0,1.34001593]
[1743421623713,0.00181816,82194.0,82193.0,1.34401593]
[1743421624916,0.00181816,82194.0,82193.0,1.35001593]
[1743421625887,0.00181816,82194.0,82193.0,0.94141593]
[1743421626585,0.00181816,82194.0,82193.0,1.01661593]
[1743421628064,0.00181816,82194.0,82193.0,0.94141593]
[1743421628462,0.00181816,82194.0,82193.0,0.80085593]
[1743421628699,0.00181816,82194.0,82193.0,0.94141593]
[1743421629875,0.00181816,82194.0,82193.0,0.80085593]
[1743421630050,0.00181816,82194.0,82193.0,0.94141593]
[1743421631356,0.01390638,82194.0,82193.0,0.94141593]
[1743421631552,0.00181816,82194.0,82193.0,0.94141593]
[1743421638807,0.00181816,82194.0,82193.0,0.80085593]
[1743421639010,0.00181816,82194.0,82193.0,0.94137593]
[1743421642498,0.00181816,82194.0,82193.0,0.80085593]
[1743421642705,0.00181816,82194.0,82193.0,0.94137593]
[1743421643110,0.00181816,82194.0,82193.0,1.11837593]
[1743421643252,0.00181816,82194.0,82193.0,1.16407593]
[1743421643455,0.00181816,82194.0,82193.0,1.06407593]
[1743421644285,0.00181816,82194.0,82193.0,1.05407593]
[1743421644483,0.00181816,82194.0,82193.0,1.06507593]
[1743421644892,0.00181816,82194.0,82193.0,1.05907593]
[1743421645270,0.00181816,82194.0,82193.0,1.06507593]
[1743421645691,0.00181816,82194.0,82193.0,1.05407593]
[1743421646077,0.00181816,82194.0,82193.0,1.06507593]
[1743421646256,0.00181816,82194.0,82193.0,1.06007593]
[1743421646760,0.00181816,82194.0,82193.0,1.06607593]
[1743421647470,0.00181816,82194.0,82193.0,1.06007593]
[1743421647638,0.00181816,82194.0,82193.0,1.06607593]
[1743421649301,0.00181816,82194.0,82193.0,1.07107593]
[1743421653264,0.00181816,82194.0,82193.0,1.07103593]
[1743421655297,0.00181816,82194.0,82193.0,1.02533593]
[1743421655459,0.00181816,82194.0,82193.0,0.94833593]
[1743421661477,0.00181816,82194.0,82193.0,1.02483593]
[1743421664731,0.00181816,82194.0,82193.0,1.03676829]
[1743421670689,0.00181816,82194.0,82193.0,1.04530914]
[1743421670911,0.00181816,82194.0,82193.0,1.18800914]
[1743421671429,0.00181816,82194.0,82193.0,1.19400914]
[1743421671798,0.00181816,82194.0,82193.0,1.06287831]
[1743421672067,0.00181816,82194.0,82193.0,1.20331831]
[1743421672239,0.00181816,82194.0,82193.0,1.19731831]
[1743421672630,0.00181816,82194.0,82193.0,1.20331831]
[1743421672975,0.00181816,82194.0,82193.0,1.19731831]
[1743421673153,0.00181816,82194.0,82193.0,1.20331831]
[1743421673332,0.00181816,82194.0,82193.0,1.19131831]
[1743421673711,0.00181816,82194.0,82193.0,1.19731831]
[1743421674397,0.00181816,82194.0,82193.0,1.20331831]
[1743421675499,0.00181816,82194.0,82193.0,1.16749593]
[1743421676567,0.00181816,82194.0,82193.0,1.15549593]
[1743421676792,0.00181816,82194.0,82193.0,1.06749593]
[1743421678947,0.00181816,82194.0,82193.0,1.01979593]
[1743421679232,0.00181816,82194.0,82193.0,0.94329593]
[1743421681823,0.00181816,82194.0,82193.0,1.02539593]
[1743421682731,0.00181816,82194.0,82193.0,1.01939593]
[1743421682962,0.00181816,82194.0,82193.0,1.02539593]
[1743421683193,0.00181816,82194.0,82193.0,1.01939593]
[1743421683416,0.00181816,82194.0,82193.0,1.02539593]
[1743421683918,0.00181816,82194.0,82193.0,1.03993678]
[1743421684165,0.00181816,82194.0,82193.0,1.08533678]
[1743421685182,0.00181816,82194.0,82193.0,1.07933678]
[1743421685955,0.00181816,82194.0,82193.0,1.08533678]
[1743421687369,0.00181816,82194.0,82193.0,0.93035593]
[1743421687618,0.00181816,82194.0,82193.0,1.47935593]
[1743421693284,0.00181816,82194.0,82193.0,1.79389678]
[1743421694014,0.00181816,82194.0,82193.0,2.49389678]
[1743421694480,0.00181816,82194.0,82193.0,2.48789678]
[1743421694755,0.00181816,82194.0,82193.0,2.35349678]
[1743421694965,0.00181816,82194.0,82193.0,2.17335593]
[1743421695215,0.00181816,82194.0,82193.0,1.33985593]
[1743421695464,0.00181816,82194.0,82193.0,1.34202088]
[1743421696205,0.00181816,82194.0,82193.0,1.33602088]
[1743421696450,0.00181816,82194.0,82193.0,1.34202088]
[1743421696703,0.00181816,82194.0,82193.0,1.34802088]
[1743421696943,0.00181816,82194.0,82193.0,1.34202088]
[1743421697394,0.00181816,82194.0,82193.0,1.34198088]
[1743421698478,0.00181816,82194.0,82193.0,1.34798088]
[1743421703118,0.00181816,82194.0,82193.0,1.20762088]
[1743421703361,0.00181816,82194.0,82193.0,0.79902088]
[1743421703646,0.68441016,82194.0,82193.0,0.04481702]
[1743421703913,0.68441016,82194.0,82193.0,0.18517702]
[1743421704156,0.68441016,82194.0,82193.0,0.17917702]
[1743421704362,0.79001166,82194.0,82193.0,0.01431686]
[1743421704578,0.79001166,82194.0,82193.0,0.02031686]
[1743421705009,0.79001166,82194.0,82193.0,0.01431686]
[1743421705711,0.79001166,82194.0,82193.0,0.00831686]
[1743421705864,0.255501,82191.0,82190.0,0.63156]
[1743421707964,0.255501,82191.0,82190.0,0.63256]
[1743421708165,0.255501,82191.0,82190.0,0.64091873]
[1743421708389,0.255501,82191.0,82190.0,0.63991873]
[1743421709090,0.255501,82191.0,82190.0,0.64091873]
[1743421713163,0.37810486,82191.0,82190.0,0.64091873]
[1743421713360,0.50230486,82191.0,82190.0,0.64091873]
[1743421713605,0.52135774,82191.0,82190.0,0.64091873]
[1743421713844,0.39875388,82191.0,82190.0,0.64091873]
[1743421714317,0.39875388,82191.0,82190.0,0.63991873]
[1743421717499,0.379701,82191.0,82190.0,0.63991873]
[1743421718507,0.379701,82191.0,82190.0,0.00835873]
[1743421718908,0.24338,82176.0,82175.0,0.1404]
[1743421719113,0.24338,82176.0,82175.0,0.26314448]
[1743421719342,0.24338,82176.0,82175.0,0.27169201]
[1743421719702,0.24338,82176.0,82175.0,0.29638338]
[1743421720267,0.24338,82176.0,82175.0,0.29838338]
[1743421721456,0.255549,82176.0,82175.0,0.29838338]
[1743421721856,0.555549,82176.0,82175.0,0.01168815]
[1743421722157,0.602649,82176.0,82175.0,0.01168815]
[1743421722363,0.602649,82176.0,82175.0,0.00314062]
[1743421722961,0.602649,82176.0,82175.0,0.00114062]
[1743421723203,0.6217055,82176.0,82175.0,0.00014062]
[1743421724666,0.63099675,82176.0,82175.0,0.00014062]
[1743421727857,0.75360061,82176.0,82175.0,0.00014062]
[1743421728753,0.63099675,82176.0,82175.0,0.00014062]
[1743421730471,0.56484025,82176.0,82175.0,0.00014062]
[1743421739892,0.55267125,82176.0,82175.0,0.00014062]
[1743421740097,0.15841131,82185.0,82175.0,0.12274448]
[1743421740315,0.012167,82184.0,82176.0,0.12260386]
[1743421740513,0.243374,82178.0,82177.0,0.0827]
[1743421740714,0.243374,82178.0,82177.0,0.21391128]
[1743421740913,0.243371,82179.0,82177.0,0.21391128]
[1743421741116,0.3,82180.0,82178.0,0.26296386]
[1743421741435,0.543368,82180.0,82179.0,0.00860728]
[1743421741782,0.15841131,82185.0,82179.0,0.00860728]
[1743421741783,0.3,82188.0,82179.0,0.26296386]
[1743421741999,0.012167,82186.0,82180.0,0.13121107]
[1743421742223,0.3,82185.0,82180.0,0.13121107]
[1743421743143,0.01384303,82194.0,82181.0,0.0759]
[1743421743355,0.01384303,82194.0,82182.0,0.12260386]
[1743421743559,0.01384303,82194.0,82182.0,0.13121094]
[1743421743776,0.255495,82193.0,82182.0,0.13121094]
[1743421743991,0.243329,82193.0,82182.0,0.13121094]
[1743421744194,0.3,82192.0,82182.0,0.13121094]
[1743421747145,0.32308049,82194.0,82182.0,0.13121094]
[1743421747298,0.31384303,82194.0,82183.0,0.0829]
[1743421747504,0.31384303,82194.0,82184.0,0.12260386]
[1743421747708,0.31384303,82194.0,82184.0,0.13115105]
[1743421747888,0.01384303,82194.0,82184.0,0.13115105]
[1743421748095,0.01384303,82194.0,82185.0,0.0829]
[1743421748424,0.01384303,82194.0,82187.0,0.0767]
[1743421748821,0.00181816,82194.0,82192.0,0.12260386]
[1743421749060,0.00181816,82194.0,82193.0,0.46475212]
[1743421749278,0.00181816,82194.0,82193.0,0.58735598]
[1743421750468,0.00181816,82194.0,82193.0,0.61153827]
[1743421751531,0.00181816,82194.0,82193.0,0.61653827]
[1743421751718,0.00181816,82194.0,82193.0,0.62053827]
[1743421753012,0.00181816,82194.0,82193.0,1.25229827]
[1743421754319,0.00181816,82194.0,82193.0,1.24729827]
[1743421754754,0.00181816,82194.0,82193.0,1.25329827]
[1743421755145,0.00181816,82194.0,82193.0,1.24929827]
[1743421755342,0.00181816,82194.0,82193.0,1.25429827]
[1743421758731,0.00181816,82194.0,82193.0,1.72513912]
[1743421759114,0.004,82209.0,82195.0,0.13]
[1743421759341,0.004,82209.0,82208.0,0.24680386]
[1743421759544,0.004,82209.0,82208.0,2.8333128]
[1743421759746,0.004,82209.0,82208.0,2.84080966]
[1743421761669,0.004,82209.0,82208.0,2.84580966]
[1743421761876,0.004,82209.0,82208.0,3.52216461]
[1743421762074,0.004,82209.0,82208.0,4.24316461]
[1743421762473,0.004,82209.0,82208.0,4.25770546]
[1743421763129,0.004,82209.0,82208.0,4.25470546]
[1743421763309,0.004,82209.0,82208.0,4.25970546]
[1743421763491,0.004,82209.0,82208.0,4.95470546]
[1743421763696,0.004,82209.0,82208.0,5.25470546]
[1743421763891,0.004,82209.0,82208.0,5.26070546]
[1743421764299,0.004,82209.0,82208.0,5.25470546]
[1743421764716,0.004,82209.0,82208.0,5.26070546]
[1743421764918,0.004,82209.0,82208.0,5.25570546]
[1743421765116,0.004,82209.0,82208.0,5.26170546]
[1743421765948,0.004,82209.0,82208.0,5.25570546]
[1743421766588,0.004,82209.0,82208.0,5.26170546]
[1743421768311,0.004,82209.0,82208.0,5.26166546]
[1743421773524,0.004,82209.0,82208.0,5.12142546]
[1743421773725,0.004,82209.0,82208.0,5.26162546]
[1743421775175,0.00134162,82209.0,82208.0,5.26162546]
[1743421775386,0.002,82224.0,82222.0,0.0478]
[1743421775611,0.002,82224.0,82223.0,2.26427556]
[1743421775812,0.002,82224.0,82223.0,2.26912773]
[1743421775813,0.00246893,82224.0,82223.0,2.26912773]
[1743421776826,0.00246893,82224.0,82223.0,2.96912773]
[1743421777045,0.00246893,82224.0,82223.0,3.00316223]
[1743421777402,0.00246893,82224.0,82223.0,3.02370308]
[1743421777621,0.00246893,82224.0,82223.0,3.0485398]
[1743421777834,0.00246893,82224.0,82223.0,3.0535398]
[1743421778458,0.00246893,82224.0,82223.0,3.0485398]
[1743421778990,0.00246893,82224.0,82223.0,2.6399398]
[1743421779151,0.00246893,82224.0,82223.0,2.6459398]
[1743421779580,0.00246893,82224.0,82223.0,1.93459195]
[1743421781254,0.00246893,82224.0,82223.0,2.07691195]
[1743421781490,0.00246893,82224.0,82223.0,1.93459195]
[1743421781706,0.00246893,82224.0,82223.0,2.22703195]
[1743421782541,0.00246893,82224.0,82223.0,2.22103195]
[1743421782960,0.00246893,82224.0,82223.0,2.22703195]
[1743421783497,0.00246893,82224.0,82223.0,2.22103195]
[1743421783955,0.00246893,82224.0,82223.0,2.22703195]
[1743421784752,0.00246893,82224.0,82223.0,2.92703195]
[1743421786751,0.00246893,82224.0,82223.0,3.23839302]
[1743421787291,0.00072055,82224.0,82223.0,3.23839302]
[1743421787491,0.004,82239.0,82238.0,0.0814]
[1743421787693,0.00414059,82239.0,82238.0,2.95087365]
[1743421787981,0.00414059,82239.0,82238.0,3.25783443]
[1743421788189,0.00414059,82239.0,82238.0,3.98052108]
[1743421788393,0.00414059,82239.0,82238.0,4.36046762]
[1743421788597,0.00414059,82239.0,82238.0,4.38546762]
[1743421788803,0.00414059,82239.0,82238.0,4.42063871]
[1743421789009,0.00414059,82239.0,82238.0,4.56759871]
[1743421789216,0.00414059,82239.0,82238.0,4.56259871]
[1743421789421,0.00414059,82239.0,82238.0,4.5496935]
[1743421789596,0.00414059,82239.0,82238.0,5.10352256]
[1743421789823,0.002,82254.0,82238.0,4.40352256]
[1743421790026,0.002,82254.0,82246.0,0.12260386]
[1743421790404,0.002,82254.0,82247.0,0.00675259]
[1743421790608,0.002,82254.0,82248.0,0.12260386]
[1743421791063,0.002,82254.0,82249.0,0.00675246]
[1743421791241,0.002,82254.0,82250.0,0.12260386]
[1743421791551,0.002,82254.0,82251.0,0.00675232]
[1743421791683,0.002,82254.0,82252.0,0.12260386]
[1743421792102,0.002,82254.0,82253.0,0.00918337]
[1743421792302,0.002,82254.0,82253.0,0.15602832]
[1743421792551,0.002,82254.0,82253.0,0.25671497]
[1743421792757,0.002,82254.0,82253.0,0.25428381]
[1743421793530,0.002,82254.0,82253.0,0.26964488]
[1743421793734,0.002,82254.0,82253.0,0.28418573]
[1743421794500,0.002,82254.0,82253.0,1.32928573]
[1743421794738,0.002,82254.0,82253.0,1.32528573]
[1743421795152,0.002,82254.0,82253.0,1.08618573]
[1743421795358,0.004,82269.0,82255.0,0.0764]
[1743421795561,0.00414048,82269.0,82268.0,1.13800386]
[1743421795763,0.00414048,82269.0,82268.0,3.9865328]
[1743421795998,0.00414048,82269.0,82268.0,4.01219071]
[1743421796531,0.00414048,82269.0,82268.0,4.71219071]
[1743421796735,0.00414048,82269.0,82268.0,4.79539071]
[1743421796942,0.00414048,82269.0,82268.0,4.80777124]
[1743421797374,0.00414048,82269.0,82268.0,4.81955363]
[1743421797559,0.00414048,82269.0,82268.0,4.84224028]
[1743421797758,0.00414048,82269.0,82268.0,4.84824028]
[1743421797983,0.00414048,82269.0,82268.0,4.86337332]
[1743421799369,0.00414048,82269.0,82268.0,4.84067959]
[1743421799833,0.00414048,82269.0,82268.0,3.34247959]
[1743421800475,0.00414048,82269.0,82268.0,4.04247959]
[1743421801611,0.00414048,82269.0,82268.0,3.34247959]
[1743421801817,0.00414048,82269.0,82268.0,2.12562692]
[1743421802034,0.00414048,82269.0,82268.0,2.11426585]
[1743421803736,0.00414048,82269.0,82268.0,2.0915792]
[1743421804724,0.00414048,82269.0,82268.0,2.7915792]
[1743421805814,0.00414048,82269.0,82268.0,2.81427618]
[1743421807330,0.00414048,82269.0,82268.0,2.11427618]
[1743421807938,0.00414048,82269.0,82268.0,3.33712885]
[1743421809750,0.00414048,82269.0,82268.0,2.10827618]
[1743421809997,0.00414048,82269.0,82268.0,2.11227618]
[1743421810397,0.00414048,82269.0,82268.0,2.10627618]
[1743421810793,0.00414048,82269.0,82268.0,2.11127618]
[1743421811553,0.00414048,82269.0,82268.0,2.0885792]
[1743421811764,0.00414048,82269.0,82268.0,2.0886992]
[1743421813429,0.00414048,82269.0,82268.0,1.9205792]
[1743421816415,0.00414048,82269.0,82268.0,3.14343187]
[1743421817229,0.00414048,82269.0,82268.0,1.94333157]
[1743421818512,0.00414048,82269.0,82268.0,1.9205792]
[1743421824880,0.00414048,82269.0,82268.0,2.0015792]
[1743421825259,0.00414048,82269.0,82268.0,1.9205792]
[1743421825515,0.00414048,82269.0,82268.0,2.0873392]
[1743421825680,0.00414048,82269.0,82268.0,0.86396293]
[1743421830739,0.00414048,82269.0,82268.0,1.56396293]
[1743421831876,0.00414048,82269.0,82268.0,1.56968097]
[1743421832374,0.255238,82276.0,82268.0,1.56968097]
[1743421832576,0.255238,82277.0,82268.0,1.56968097]
[1743421832783,0.40148931,82280.0,82268.0,1.56968097]
[1743421832982,0.15841131,82280.0,82268.0,1.56968097]
[1743421833379,0.15841131,82280.0,82268.0,0.86468097]
[1743421833745,0.15841131,82280.0,82268.0,0.86768097]
[1743421833945,0.15841131,82280.0,82268.0,0.86368097]
[1743421834140,0.15841131,82280.0,82269.0,0.0797]
[1743421834345,0.40148531,82280.0,82270.0,0.13504336]
[1743421834584,0.40148431,82280.0,82270.0,0.13504336]
[1743421834919,0.243077,82279.0,82270.0,0.13504336]
[1743421835159,0.40148531,82280.0,82270.0,0.13504336]
[1743421835303,0.40148531,82280.0,82270.0,0.83504336]
[1743421836284,0.243076,82279.0,82270.0,0.83504336]
[1743421836696,0.24308,82278.0,82270.0,0.83504336]
[1743421836818,0.012153,82279.0,82270.0,0.83704336]
[1743421837014,0.243078,82278.0,82270.0,0.83804336]
[1743421837376,0.243081,82277.0,82270.0,0.13504336]
[1743421837593,0.243081,82277.0,82270.0,0.13704336]
[1743421837811,0.012154,82277.0,82270.0,0.13904336]
[1743421838027,0.255253,82271.0,82270.0,0.0144395]
[1743421838232,0.255253,82271.0,82270.0,0.0124395]
[1743421838445,0.255253,82271.0,82270.0,0.0154395]
[1743421838646,0.255253,82271.0,82270.0,0.003]
[1743421838845,0.255253,82271.0,82270.0,0.01545918]
[1743421839004,0.255253,82271.0,82270.0,0.003]
[1743421839210,0.255253,82271.0,82270.0,0.01545918]
[1743421839413,0.255253,82271.0,82270.0,0.005]
[1743421839615,0.255253,82271.0,82270.0,0.01545918]
[1743421839834,0.255253,82271.0,82270.0,0.003]
[1743421840032,0.255253,82271.0,82270.0,0.01646136]
[1743421840194,0.255253,82271.0,82270.0,0.004]
[1743421840418,0.255253,82271.0,82270.0,0.01346136]
[1743421840617,0.243099,82271.0,82270.0,0.001]
[1743421840957,0.243099,82271.0,82270.0,0.003]
[1743421841134,0.243099,82271.0,82270.0,0.01546136]
[1743421841565,0.012154,82272.0,82270.0,0.01546136]
[1743421841726,0.243099,82271.0,82270.0,0.01546136]
[1743421842344,0.243099,82271.0,82270.0,0.01346136]
[1743421842969,0.255253,82271.0,82270.0,0.01346136]
[1743421843172,0.255253,82271.0,82270.0,0.001]
[1743421843806,0.255253,82271.0,82270.0,0.002]
[1743421844279,0.255253,82271.0,82270.0,0.001]
[1743421844705,0.255253,82271.0,82270.0,0.003]
[1743421844929,0.7850519,82271.0,82270.0,0.003]
[1743421845775,0.7850519,82271.0,82270.0,0.002]
[1743421846952,0.555259,82269.0,82268.0,0.02416292]
[1743421848981,0.3,82269.0,82268.0,0.14676678]
[1743421849396,0.1,82271.0,82268.0,0.15926154]
[1743421849598,0.1,82271.0,82269.0,0.12260386]
[1743421850225,0.1,82271.0,82270.0,0.01249448]
[1743421850424,0.1,82271.0,82270.0,0.13509834]
[1743421850724,0.1,82271.0,82270.0,0.12260386]
[1743421850928,0.1,82271.0,82270.0,0.13509834]
[1743421851262,0.343099,82271.0,82270.0,0.13609834]
[1743421851467,0.1,82271.0,82270.0,0.13609834]
[1743421852285,0.343099,82271.0,82270.0,0.13609834]
[1743421852924,0.1,82271.0,82270.0,0.13709834]
[1743421853334,0.112154,82271.0,82270.0,0.13709834]
[1743421853739,0.355253,82271.0,82270.0,0.13709834]
[1743421854154,0.355253,82271.0,82270.0,0.002]
[1743421860296,0.7673513,82271.0,82270.0,0.002]
[1743421860497,0.703853,82271.0,82270.0,0.002]
[1743421861473,0.703853,82271.0,82270.0,0.001]
[1743421862253,0.703853,82271.0,82264.0,0.02423841]
[1743421862254,0.555271,82265.0,82264.0,0.02423841]
[1743421862689,0.3,82265.0,82264.0,0.14684227]
[1743421862827,0.243102,82270.0,82264.0,0.14684227]
[1743421863033,0.3,82269.0,82265.0,0.12260386]
[1743421863253,0.1,82271.0,82265.0,0.12260386]
[1743421863254,0.3,82270.0,82265.0,0.16980386]
[1743421863429,0.3,82270.0,82266.0,0.01250399]
[1743421863662,0.3,82270.0,82267.0,0.12260386]
[1743421864036,0.3,82270.0,82268.0,0.01250372]
[1743421864234,0.3,82270.0,82269.0,0.12260386]
[1743421864550,0.3,82270.0,82269.0,0.13510744]
[1743421865173,0.1,82271.0,82269.0,0.13510744]
[1743421865380,0.1,82271.0,82270.0,0.0824]
[1743421865556,0.1,82271.0,82270.0,1.44331443]
[1743421865754,0.1,82271.0,82270.0,1.44088357]
[1743421866163,0.1,82271.0,82270.0,1.92158357]
[1743421866364,0.1,82271.0,82270.0,1.96968357]
[1743421866577,0.1,82271.0,82270.0,2.66968357]
[1743421866779,0.1,82271.0,82270.0,3.08128357]
[1743421867142,0.1,82271.0,82270.0,3.09062388]
[1743421867461,0.1,82271.0,82270.0,3.09562388]
[1743421867662,0.08431202,82271.0,82270.0,3.39562388]
[1743421867865,0.06806011,82271.0,82270.0,3.39562388]
[1743421868077,0.01215,82300.0,82274.0,0.2769]
[1743421868317,0.00014046,82299.0,82294.0,0.1269]
[1743421868534,0.00014046,82299.0,82295.0,0.28644386]
[1743421868753,0.00014046,82299.0,82295.0,0.29878839]
[1743421869635,0.00014046,82299.0,82295.0,0.30078839]
[1743421869843,0.00014046,82299.0,82296.0,0.12260386]
[1743421870224,0.00014046,82299.0,82297.0,0.01232829]
[1743421870426,0.00014046,82299.0,82298.0,0.12260386]
[1743421870833,0.00014046,82299.0,82298.0,0.86156371]
[1743421871003,0.00014046,82299.0,82298.0,0.85913377]
[1743421871795,0.00014046,82299.0,82298.0,2.08198644]
[1743421872427,0.00014046,82299.0,82298.0,2.16278644]
[1743421872647,0.00014046,82299.0,82298.0,2.20788644]
[1743421872905,0.00014046,82299.0,82298.0,2.21088644]
[1743421873126,0.00014046,82299.0,82298.0,2.37912644]
[1743421873339,0.00014046,82299.0,82298.0,2.21188644]
[1743421873554,0.00014046,82299.0,82298.0,0.16313377]
[1743421873770,0.00014046,82299.0,82298.0,0.32821377]
[1743421874185,0.00014046,82299.0,82298.0,0.33021377]
[1743421874593,0.00014046,82299.0,82298.0,0.33621377]
[1743421875018,0.00014046,82299.0,82298.0,0.33021377]
[1743421875435,0.00014046,82299.0,82298.0,0.32921377]
[1743421875837,0.00014046,82299.0,82298.0,0.33321377]
[1743421875995,0.00014046,82299.0,82298.0,0.32921377]
[1743421876403,0.00014046,82299.0,82298.0,0.33321377]
[1743421877433,0.00014046,82299.0,82298.0,1.03321377]
[1743421878513,0.00014046,82299.0,82298.0,0.86313377]
[1743421878716,0.00014046,82299.0,82298.0,1.03361377]
[1743421878915,0.00014046,82299.0,82298.0,1.02961377]
[1743421879138,0.00014046,82299.0,82298.0,1.03561377]
[1743421879352,0.00014046,82299.0,82298.0,1.02361377]
[1743421879831,0.00014046,82299.0,82298.0,1.02861377]
[1743421880035,0.00014046,82299.0,82298.0,1.02361377]
[1743421880456,0.00014046,82299.0,82298.0,1.02761377]
[1743421880654,0.00014046,82299.0,82298.0,1.03361377]
[1743421881203,0.00014046,82299.0,82298.0,1.02761377]
[1743421881402,0.10014046,82299.0,82298.0,1.02761377]
[1743421881626,0.10014046,82299.0,82298.0,1.10961377]
[1743421881849,0.10014046,82299.0,82298.0,1.15741377]
[1743421882635,0.10014046,82299.0,82298.0,1.45741377]
[1743421883090,0.10014046,82299.0,82298.0,1.45341377]
[1743421883462,0.10014046,82299.0,82298.0,1.45941377]
[1743421883670,0.10014046,82299.0,82298.0,1.45341377]
[1743421884138,0.10014046,82299.0,82298.0,1.45941377]
[1743421884340,0.10014046,82299.0,82298.0,1.28993377]
[1743421884514,0.10014046,82299.0,82298.0,1.46045377]
[1743421885117,0.10014046,82299.0,82298.0,1.45445377]
[1743421885524,0.10014046,82299.0,82298.0,1.46045377]
[1743421886831,0.10014046,82299.0,82298.0,1.70075377]
[1743421887054,0.10014046,82299.0,82298.0,2.10935377]
[1743421887412,0.06952372,82299.0,82298.0,2.10935377]
[1743421887823,0.06952372,82299.0,82298.0,2.10335377]
[1743421888025,0.06952372,82299.0,82298.0,2.10935377]
[1743421888809,0.06952372,82299.0,82298.0,2.10335377]
[1743421889219,0.06952372,82299.0,82298.0,2.10935377]
[1743421891421,0.04786925,82299.0,82298.0,2.12389462]
[1743421891618,0.01215,82300.0,82299.0,0.01454085]
[1743421891826,0.01215,82300.0,82299.0,2.42932692]
[1743421892039,0.01215,82300.0,82299.0,2.43907601]
[1743421892243,0.25,82308.0,82307.0,0.4]
[1743421892418,0.25,82308.0,82307.0,3.12808013]
[1743421892626,0.25,82308.0,82307.0,3.14022896]
[1743421892831,0.25,82308.0,82307.0,3.84022896]
[1743421893039,0.25,82308.0,82307.0,4.00490896]
[1743421894085,0.25004679,82308.0,82307.0,4.00490896]
[1743421895145,0.25004679,82308.0,82307.0,4.01690896]
[1743421895799,0.25004679,82308.0,82307.0,4.44004981]
[1743421896430,0.25004679,82308.0,82307.0,4.44933067]